bitfinex-derivatives/quotes_SOLF0:USTF0_20250823
["timestamp","ask_amount","ask_price","bid_price","bid_amount"]
[1755980379767,4.9309,203.69,203.66,2.66]
[1755980379964,4.9309,203.69,203.67,7.2250818]
[1755980380166,4.9309,203.69,203.68,4.56602841]
[1755980383377,4.9109,203.69,203.68,7.22602841]
[1755980384878,4.9109,203.69,203.68,7.25964867]
[1755980394582,4.9109,203.69,203.68,7.26199622]
[1755980395584,4.9109,203.69,203.68,7.262037]
[1755980395783,4.9309,203.69,203.68,4.602037]
[1755980396186,4.9109,203.69,203.68,7.262037]
[1755980403193,4.9109,203.69,203.68,2.66]
[1755980403392,4.9109,203.69,203.68,7.26281812]
[1755980405893,4.9102,203.71,203.68,4.60281812]
[1755980406093,4.9102,203.71,203.69,7.35281812]
[1755980406286,143.6469,203.75,203.71,2.75]
[1755980406287,4.9097,203.73,203.71,2.75]
[1755980406488,4.9097,203.73,203.72,7.35281812]
[1755980407091,4.9097,203.73,203.72,4.60281812]
[1755980407290,9.97538069,203.75,203.72,7.35281812]
[1755980407498,4.9092,203.75,203.73,7.35232434]
[1755980407690,4.9092,203.75,203.67,5.06618069]
[1755980407691,4.9092,203.75,203.74,7.35232434]
[1755980407897,5.06618069,203.78,203.74,7.35232434]
[1755980408094,5.06618069,203.78,203.75,4.60232434]
[1755980408294,5.06618069,203.78,203.74,2.75]
[1755980408492,5.06618069,203.8,203.77,2.75]
[1755980408796,5.06618069,203.8,203.78,2.75]
[1755980409193,4.9082,203.79,203.72,2.75]
[1755980409392,5.06618069,203.82,203.74,2.75]
[1755980409590,173.26167375,203.84,203.76,2.75]
[1755980409787,5.06618069,203.85,203.78,2.75]
[1755980409985,5.06618069,203.85,203.75,5.06618069]
[1755980409986,4.9072,203.83,203.8,2.75]
[1755980410187,4.9072,203.83,203.81,7.34199131]
[1755980410397,4.9072,203.83,203.81,2.75]
[1755980412100,5.06618069,203.83,203.74,2.75]
[1755980412301,5.06618069,203.8,203.76,2.75]
[1755980414499,4.9083,203.79,203.76,2.75]
[1755980416900,4.9086,203.78,203.76,2.75]
[1755980417095,5.06618069,203.78,203.7,2.75]
[1755980417302,5.06618069,203.73,203.67,2.75]
[1755980417500,5.06618069,203.73,203.68,7.32302044]
[1755980417705,4.9101,203.71,203.69,4.57302044]
[1755980417905,4.9101,203.71,203.63,5.06618069]
[1755980418112,4.9101,203.71,203.69,2.75]
[1755980421706,4.9101,203.71,203.64,2.75]
[1755980421908,4.9101,203.71,203.66,2.75]
[1755980422105,4.9101,203.71,203.67,4.57392431]
[1755980422305,4.9101,203.71,203.69,2.75]
[1755980422505,4.9101,203.71,203.64,4.9116]
[1755980422705,4.9101,203.71,203.7,2.75]
[1755980432320,4.9101,203.71,203.65,2.75]
[1755980432520,4.9101,203.71,203.67,2.75]
[1755980432722,4.9101,203.71,203.68,7.32600979]
[1755980433020,4.9101,203.71,203.68,2.75]
[1755980434315,4.9101,203.71,203.64,4.9116]
[1755980434522,4.9101,203.71,203.69,2.73]
[1755980435324,4.9097,203.73,203.65,4.9114]
[1755980435524,4.9097,203.73,203.67,2.73]
[1755980435725,4.9097,203.73,203.68,4.57683256]
[1755980435922,4.9097,203.73,203.69,7.30683256]
[1755980436121,4.9097,203.73,203.7,4.57683256]
[1755980436322,4.9097,203.73,203.69,2.73]
[1755980436524,4.9097,203.73,203.7,4.57693234]
[1755980436722,4.9097,203.73,203.69,2.73]
[1755980437024,4.91,203.72,203.7,4.57693234]
[1755980437225,4.91,203.72,203.69,2.73]
[1755980437424,4.91,203.72,203.7,4.57716834]
[1755980437624,4.91,203.72,203.69,2.73]
[1755980437824,4.91,203.72,203.7,4.57716834]
[1755980438024,4.91,203.72,203.69,2.73]
[1755980438225,4.91,203.72,203.7,4.57716834]
[1755980438422,4.91,203.72,203.7,2.73]
[1755980439819,4.91,203.72,203.65,4.9114]
[1755980440025,4.91,203.72,203.67,2.73]
[1755980440227,4.91,203.72,203.69,2.73]
[1755980440426,4.91,203.72,203.7,4.5777609]
[1755980440632,4.91,203.72,203.69,2.73]
[1755980440829,4.91,203.72,203.7,4.57807683]
[1755980441028,4.91,203.72,203.65,4.9114]
[1755980441327,4.91,203.72,203.7,2.73]
[1755980447729,4.91,203.72,203.71,4.5832849]
[1755980448122,4.91,203.72,203.7,2.73]
[1755980448324,4.91,203.72,203.71,4.58336618]
[1755980452436,4.91,203.72,203.71,4.58480943]
[1755980461541,4.91,203.72,203.71,4.60012497]
[1755980464446,4.91,203.72,203.71,7.33012497]
[1755980467651,4.91,203.72,203.71,7.33174509]
[1755980471854,4.91,203.72,203.71,7.3419888]
[1755980477555,4.91,203.72,203.71,7.3419482]
[1755980480860,4.91,203.72,203.71,7.34216149]
[1755980490666,4.91,203.72,203.71,7.34237046]
[1755980491467,4.91,203.72,203.71,7.34243801]
[1755980495057,4.91,203.72,203.71,4.61243801]
[1755980500466,4.9103,203.7,203.69,2.76]
[1755980500668,4.9103,203.7,203.69,7.37238552]
[1755980501965,4.9103,203.7,203.69,4.61238552]
[1755980502565,4.9103,203.7,203.69,7.37238552]
[1755980504474,5.05368129,203.79,203.7,2.76]
[1755980504663,29.59168129,203.82,203.72,2.76]
[1755980504865,148.65168129,203.82,203.74,2.76]
[1755980505071,148.65168129,203.82,203.76,2.76]
[1755980505270,148.65168129,203.82,203.78,2.76]
[1755980505467,148.65168129,203.82,203.79,4.52924338]
[1755980505468,4.9081,203.8,203.79,4.52924338]
[1755980505673,4.9081,203.8,203.79,7.28924338]
[1755980505972,4.9081,203.8,203.79,4.52924338]
[1755980507972,4.9081,203.8,203.79,7.28924338]
[1755980510271,4.9081,203.8,203.79,7.27985286]
[1755980511175,4.9081,203.8,203.79,4.51985286]
[1755980512279,5.05368129,203.81,203.73,2.76]
[1755980512578,5.05368129,203.76,203.73,2.76]
[1755980513271,4.9092,203.75,203.73,2.76]
[1755980513473,4.9092,203.75,203.74,2.76]
[1755980519378,4.9092,203.75,203.68,2.76]
[1755980524282,4.9092,203.75,203.7,2.55]
[1755980524581,4.9092,203.75,203.71,4.42684136]
[1755980524778,4.9092,203.75,203.68,2.55]
[1755980524980,4.9092,203.75,203.69,4.42677615]
[1755980525171,4.9092,203.75,203.71,2.55]
[1755980525375,4.9092,203.75,203.72,2.55]
[1755980525575,4.9092,203.75,203.68,2.55]
[1755980525775,4.9092,203.75,203.7,2.55]
[1755980526071,4.9092,203.75,203.72,2.55]
[1755980526581,4.9092,203.75,203.73,4.42693757]
[1755980526781,4.9092,203.75,203.72,2.55]
[1755980526982,4.9092,203.75,203.73,4.42687236]
[1755980527182,4.9092,203.75,203.72,2.55]
[1755980527386,4.9092,203.75,203.73,4.42688445]
[1755980527682,4.9095,203.74,203.68,2.55]
[1755980527975,4.9095,203.74,203.71,2.55]
[1755980528182,4.9095,203.74,203.72,6.97688505]
[1755980528380,4.9095,203.74,203.73,4.42688505]
[1755980528879,4.9095,203.74,203.67,2.55]
[1755980529077,4.9095,203.74,203.69,2.55]
[1755980529278,4.9095,203.74,203.7,4.42696061]
[1755980529481,4.9095,203.74,203.71,6.97696061]
[1755980529682,4.9095,203.74,203.72,4.42696061]
[1755980529881,4.9095,203.74,203.73,4.42696061]
[1755980530483,4.9095,203.74,203.71,2.55]
[1755980530686,4.9095,203.74,203.72,4.42742842]
[1755980530882,4.9095,203.74,203.71,2.55]
[1755980531083,4.9095,203.74,203.72,4.42742842]
[1755980531282,4.9095,203.74,203.73,4.42729703]
[1755980531485,4.9089,203.76,203.73,6.97729703]
[1755980531687,4.9089,203.76,203.73,2.55]
[1755980531986,4.9089,203.76,203.7,2.55]
[1755980532186,4.9089,203.76,203.72,2.55]
[1755980532386,4.9089,203.76,203.73,4.45293887]
[1755980532580,4.9089,203.76,203.72,2.55]
[1755980532776,4.9089,203.76,203.73,4.45305817]
[1755980532980,4.9089,203.76,203.72,2.55]
[1755980533179,4.9092,203.75,203.73,4.45305817]
[1755980533386,4.9092,203.75,203.72,2.55]
[1755980533587,4.9092,203.75,203.73,4.45332223]
[1755980533789,4.9092,203.75,203.72,2.55]
[1755980533990,4.9092,203.75,203.73,4.45319094]
[1755980534186,4.9092,203.75,203.72,2.55]
[1755980534390,4.9092,203.75,203.73,4.45333664]
[1755980534688,4.9092,203.75,203.72,2.55]
[1755980534987,4.9092,203.75,203.73,4.45320536]
[1755980535187,4.9092,203.75,203.74,4.45320536]
[1755980535487,4.9092,203.75,203.72,2.55]
[1755980535689,4.9092,203.75,203.73,4.45360633]
[1755980535884,4.9092,203.75,203.72,2.55]
[1755980536084,4.9092,203.75,203.73,4.45360718]
[1755980536279,4.9092,203.75,203.72,2.55]
[1755980536485,4.9092,203.75,203.73,4.45378238]
[1755980536685,4.9092,203.75,203.72,2.55]
[1755980536886,4.9092,203.75,203.73,4.45378238]
[1755980537086,4.9092,203.75,203.72,2.55]
[1755980537286,4.9092,203.75,203.73,4.45397582]
[1755980537483,4.9092,203.75,203.72,2.55]
[1755980537684,4.9092,203.75,203.73,4.45397582]
[1755980537882,4.9092,203.75,203.72,2.55]
[1755980538087,4.9092,203.75,203.73,4.45397582]
[1755980538383,4.9092,203.75,203.72,2.55]
[1755980538580,4.9092,203.75,203.73,4.45418039]
[1755980538785,4.9092,203.75,203.72,2.55]
[1755980538988,4.9092,203.75,203.73,4.45418039]
[1755980539188,4.9092,203.75,203.72,2.55]
[1755980539385,4.9092,203.75,203.73,4.4543965]
[1755980539587,4.9092,203.75,203.72,2.55]
[1755980539787,4.9092,203.75,203.73,4.4543965]
[1755980539990,4.9092,203.75,203.72,2.55]
[1755980540191,4.9092,203.75,203.73,4.4543965]
[1755980540391,4.9092,203.75,203.72,2.55]
[1755980540693,4.9092,203.75,203.73,4.4547081]
[1755980540894,4.9092,203.75,203.72,2.55]
[1755980541092,4.9092,203.75,203.73,4.4547081]
[1755980541390,4.9092,203.75,203.72,2.55]
[1755980541593,4.9092,203.75,203.73,4.45503876]
[1755980541897,4.9092,203.75,203.72,2.55]
[1755980542092,4.9092,203.75,203.73,4.45503876]
[1755980542295,4.9092,203.75,203.72,2.55]
[1755980542494,4.9092,203.75,203.73,4.45544051]
[1755980542791,4.9092,203.75,203.72,2.55]
[1755980542991,4.9092,203.75,203.73,4.45544051]
[1755980543295,4.9092,203.75,203.72,2.55]
[1755980543496,4.9092,203.75,203.73,4.45592652]
[1755980543685,4.9092,203.75,203.72,2.55]
[1755980543888,4.9092,203.75,203.73,4.45592652]
[1755980544090,4.9092,203.75,203.72,2.55]
[1755980544395,4.9092,203.75,203.73,4.45633081]
[1755980544594,4.9092,203.75,203.72,2.55]
[1755980544794,4.9092,203.75,203.73,4.45633081]
[1755980544995,4.9092,203.75,203.72,2.55]
[1755980545197,4.9092,203.75,203.73,4.45633081]
[1755980545389,4.9092,203.75,203.72,2.55]
[1755980545590,4.9092,203.75,203.73,4.45682047]
[1755980545790,4.9092,203.75,203.72,2.55]
[1755980545990,4.9092,203.75,203.73,4.45682047]
[1755980546193,4.9092,203.75,203.72,2.55]
[1755980546494,4.9092,203.75,203.73,4.4574122]
[1755980546794,4.9092,203.75,203.72,2.55]
[1755980546995,4.9092,203.75,203.73,4.4574122]
[1755980547302,4.9092,203.75,203.72,2.55]
[1755980547592,4.9092,203.75,203.73,4.45834424]
[1755980547794,4.9092,203.75,203.72,2.55]
[1755980547989,4.9092,203.75,203.73,4.45834424]
[1755980548190,4.9092,203.75,203.74,4.45948969]
[1755980558400,4.9096,203.73,203.66,14.08790605]
[1755980558600,4.9096,203.73,203.67,8.61448709]
[1755980558899,4.9096,203.73,203.68,8.61448709]
[1755980559102,4.9096,203.73,203.7,2.7]
[1755980559399,4.9096,203.73,203.72,2.7]
[1755980559600,4.9096,203.73,203.72,7.16911488]
[1755980568213,4.9096,203.73,203.72,2.7]
[1755980568406,4.9096,203.73,203.72,7.18226607]
[1755980576120,4.9096,203.73,203.72,4.48226607]
[1755980578118,4.9096,203.73,203.69,2.7]
[1755980578319,4.9096,203.73,203.72,2.7]
[1755980578520,4.9096,203.73,203.72,7.18280496]
[1755980581226,5.05368129,203.8,203.73,2.7]
[1755980581423,5.05368129,203.8,203.74,8.62813231]
[1755980581620,5.05368129,203.8,203.76,2.7]
[1755980581821,5.05368129,203.8,203.77,4.48280496]
[1755980582130,4.9081,203.79,203.78,4.48280496]
[1755980586626,4.9087,203.77,203.74,2.65]
[1755980586927,4.9087,203.77,203.75,7.16287511]
[1755980587128,4.9087,203.77,203.76,4.51287511]
[1755980587329,4.9087,203.77,203.76,7.16287511]
[1755980590133,4.9087,203.77,203.76,2.65]
[1755980590333,4.9082,203.79,203.77,2.65]
[1755980590529,4.9082,203.79,203.78,7.16183747]
[1755980590727,5.05368129,203.81,203.79,2.65]
[1755980590928,4.9077,203.81,203.8,4.51183747]
[1755980591134,4.9077,203.81,203.8,7.16183747]
[1755980591833,4.9077,203.81,203.8,4.51183747]
[1755980592034,9.96138129,203.81,203.8,4.51183747]
[1755980592534,4.9086,203.77,203.74,2.65]
[1755980594126,4.9086,203.77,203.75,2.65]
[1755980594330,4.9086,203.77,203.76,2.65]
[1755980601634,4.909,203.76,203.72,2.65]
[1755980601839,4.909,203.76,203.73,2.65]
[1755980604451,4.909,203.76,203.74,4.49910771]
[1755980604644,4.909,203.76,203.75,4.49910771]
[1755980604850,4.909,203.76,203.75,7.14910771]
[1755980606553,4.909,203.76,203.75,7.14926139]
[1755980609757,4.909,203.76,203.75,7.14964148]
[1755980616161,4.909,203.76,203.75,2.65]
[1755980616460,4.909,203.76,203.75,7.15112174]
[1755980616959,4.909,203.76,203.75,7.15122048]
[1755980626072,4.909,203.76,203.75,2.65]
[1755980626271,4.909,203.76,203.75,7.15528877]
[1755980626868,4.909,203.76,203.75,2.65]
[1755980627073,4.909,203.76,203.75,7.15544797]
[1755980628772,4.909,203.76,203.75,4.50544797]
[1755980628974,4.909,203.76,203.75,7.25544797]
[1755980635583,4.909,203.76,203.75,4.50544797]
[1755980635887,4.909,203.76,203.75,7.25531005]
[1755980636387,4.909,203.76,203.75,7.25633601]
[1755980641291,4.909,203.76,203.75,2.75]
[1755980641491,4.909,203.76,203.75,7.25799565]
[1755980644798,4.909,203.76,203.75,7.25797817]
[1755980645396,4.909,203.76,203.75,7.25802545]
[1755980646393,4.9079,203.8,203.75,7.25802545]
[1755980646698,29.59168129,203.82,203.76,7.04802545]
[1755980646898,29.59168129,203.82,203.77,7.04802545]
[1755980647199,29.59168129,203.82,203.78,4.50802545]
[1755980647399,29.59168129,203.82,203.77,2.54]
[1755980647704,4.9083,203.79,203.78,4.50755877]
[1755980651499,5.05368129,203.86,203.79,2.54]
[1755980651698,5.05368129,203.86,203.8,4.50755877]
[1755980652000,5.05368129,203.86,203.83,2.54]
[1755980652707,4.9071,203.84,203.83,2.54]
[1755980656899,4.9071,203.84,203.78,5.05368129]
[1755980657103,4.9071,203.84,203.8,2.54]
[1755980657299,4.9071,203.84,203.82,2.54]
[1755980659205,4.9075,203.82,203.79,2.54]
[1755980659398,4.9075,203.82,203.8,4.44691538]
[1755980659601,4.9075,203.82,203.8,2.54]
[1755980659801,4.9075,203.82,203.81,2.54]
[1755980660199,4.907,203.84,203.81,2.54]
[1755980660701,4.907,203.84,203.82,2.54]
[1755980660905,4.907,203.84,203.83,2.54]
[1755980666714,24.5326,203.86,203.77,2.54]
[1755980667013,5.05368129,203.81,203.75,2.54]
[1755980667205,5.05368129,203.81,203.73,5.05368129]
[1755980667206,123.87368129,203.81,203.76,4.44341592]
[1755980667412,123.87368129,203.81,203.77,4.44341592]
[1755980667608,123.87368129,203.81,203.76,2.54]
[1755980667806,123.87368129,203.81,203.77,4.44342858]
[1755980668009,123.87368129,203.81,203.76,2.54]
[1755980668205,123.87368129,203.81,203.77,4.44342858]
[1755980668410,123.87368129,203.81,203.76,2.54]
[1755980668609,4.9084,203.79,203.77,4.44345896]
[1755980668809,4.9084,203.79,203.76,2.54]
[1755980669009,4.9084,203.79,203.77,4.44345896]
[1755980669310,4.9084,203.79,203.76,2.54]
[1755980669506,4.9084,203.79,203.77,4.44356352]
[1755980669705,4.9084,203.79,203.76,2.54]
[1755980670009,4.9084,203.79,203.77,4.44356352]
[1755980670212,4.9084,203.79,203.76,2.54]
[1755980670413,4.9084,203.79,203.77,4.44363196]
[1755980670614,4.9084,203.79,203.76,2.54]
[1755980670913,4.9084,203.79,203.77,4.44363196]
[1755980671112,4.9084,203.79,203.76,2.54]
[1755980671314,4.9084,203.79,203.77,4.44371862]
[1755980671611,4.9084,203.79,203.76,2.54]
[1755980671812,4.9085,203.78,203.77,4.44371862]
[1755980673213,4.9085,203.78,203.77,6.98371862]
[1755980675715,5.05368129,203.87,203.78,2.56]
[1755980676015,118.8,203.86,203.8,2.56]
[1755980676209,118.8,203.86,203.81,4.44400279]
[1755980676515,118.8,203.86,203.8,2.56]
[1755980677615,5.05368129,203.87,203.81,7.00438634]
[1755980677616,123.7067,203.85,203.81,7.00438634]
[1755980677816,123.7067,203.85,203.81,2.56]
[1755980678316,4.9071,203.84,203.81,2.56]
[1755980682915,4.9071,203.84,203.82,2.56]
[1755980685017,5.05368129,203.95,203.84,2.56]
[1755980685219,5.05368129,203.93,203.86,2.56]
[1755980685414,5.05368129,203.93,203.87,4.43843917]
[1755980685619,5.05368129,203.93,203.86,2.56]
[1755980685620,5.05368129,203.93,203.88,4.43843917]
[1755980685820,5.05368129,203.93,203.86,2.56]
[1755980686019,5.05368129,203.93,203.87,4.4355021]
[1755980686320,4.9057,203.9,203.84,2.56]
[1755980686516,4.9057,203.9,203.86,2.56]
[1755980686717,4.9057,203.9,203.87,2.56]
[1755980687721,4.9059,203.89,203.87,2.56]
[1755980691819,4.9059,203.89,203.84,2.56]
[1755980692024,4.9059,203.89,203.86,2.56]
[1755980692224,4.9059,203.89,203.84,2.56]
[1755980692427,4.9059,203.89,203.86,2.56]
[1755980692618,4.9062,203.88,203.83,5.05368129]
[1755980692819,4.9062,203.88,203.87,2.56]
[1755980697126,4.9056,203.9,203.87,2.56]
[1755980698125,4.9056,203.9,203.88,2.56]
[1755980700032,4.9056,203.9,203.85,2.56]
[1755980700228,4.9059,203.89,203.87,2.56]
[1755980701725,4.9059,203.89,203.83,5.05368129]
[1755980701922,4.9059,203.89,203.85,2.56]
[1755980702119,4.9059,203.89,203.86,6.99205014]
[1755980702323,4.9059,203.89,203.83,5.05368129]
[1755980702519,4.9059,203.89,203.87,2.56]
[1755980707633,4.9059,203.89,203.88,2.57]
[1755980710132,24.5199,203.97,203.89,2.57]
[1755980710327,118.82,203.97,203.89,2.57]
[1755980711629,4.9047,203.94,203.9,2.57]
[1755980712231,4.9047,203.94,203.87,9.95978129]
[1755980712532,4.905,203.93,203.89,2.57]
[1755980712733,4.905,203.93,203.9,2.57]
[1755980714836,118.82,203.97,203.81,24.5384]
[1755980714837,5.05368129,204.0,203.91,7.03251324]
[1755980715028,5.05368129,204.0,203.92,4.46251324]
[1755980715235,5.05368129,204.0,203.93,4.46251324]
[1755980715528,5.05368129,204.0,203.92,2.57]
[1755980715734,5.05368129,204.0,203.93,4.46133132]
[1755980715928,5.05368129,204.0,203.92,2.57]
[1755980716133,5.05368129,204.0,203.93,4.46133132]
[1755980716333,5.05368129,204.0,203.92,2.57]
[1755980716538,4.9038,203.98,203.93,4.46074592]
[1755980716734,4.9038,203.98,203.91,5.05368129]
[1755980717034,4.9038,203.98,203.92,7.03074592]
[1755980717336,4.9038,203.98,203.93,7.03074592]
[1755980717636,4.9038,203.98,203.93,2.57]
[1755980717934,4.9038,203.98,203.94,2.57]
[1755980720737,4.9038,203.98,203.92,2.57]
[1755980720935,4.9038,203.98,203.93,4.46044445]
[1755980721132,4.9038,203.98,203.94,4.4600698]
[1755980721337,9.95688129,204.0,203.96,2.57]
[1755980721539,5.05368129,204.0,203.92,2.57]
[1755980721736,5.05368129,204.0,203.93,4.46004016]
[1755980721938,5.05368129,204.0,203.94,4.46004016]
[1755980722142,5.05368129,204.0,203.92,2.57]
[1755980722444,5.05368129,204.0,203.93,4.46009981]
[1755980722646,4.9038,203.98,203.94,4.46009981]
[1755980722845,4.9038,203.98,203.92,2.57]
[1755980723145,4.9038,203.98,203.93,7.03009981]
[1755980723342,4.9038,203.98,203.94,4.46009981]
[1755980723542,4.9038,203.98,203.93,2.57]
[1755980723943,4.9038,203.98,203.94,2.57]
[1755980730946,5.05368129,203.96,203.85,2.57]
[1755980731150,5.05368129,203.96,203.87,2.57]
[1755980731347,5.05368129,203.96,203.89,2.57]
[1755980731545,5.05368129,203.96,203.9,4.46420457]
[1755980731745,5.05368129,203.96,203.91,4.46420457]
[1755980731941,5.05368129,203.96,203.89,2.57]
[1755980732150,5.05368129,203.96,203.9,4.46460399]
[1755980732450,5.05368129,203.96,203.91,4.46460399]
[1755980732650,4.9046,203.94,203.9,2.57]
[1755980732848,4.9046,203.94,203.91,4.46481171]
[1755980733147,9.95828129,203.94,203.87,2.57]
[1755980733353,9.95828129,203.94,203.88,4.46527389]
[1755980733557,9.95828129,203.94,203.89,7.08527389]
[1755980733746,9.95828129,203.94,203.89,2.62]
[1755980734254,9.95828129,203.94,203.9,2.62]
[1755980734552,9.95828129,203.94,203.91,2.62]
[1755980737255,9.95828129,203.94,203.86,4.9063]
[1755980737553,9.95828129,203.94,203.88,2.62]
[1755980737751,9.95828129,203.94,203.89,4.46654603]
[1755980738053,9.95828129,203.94,203.91,2.62]
[1755980738256,9.95828129,203.94,203.86,9.95998129]
[1755980738451,9.95828129,203.94,203.88,2.62]
[1755980738655,9.95828129,203.94,203.9,2.62]
[1755980738856,9.95828129,203.94,203.91,2.62]
[1755980740558,9.95828129,203.94,203.87,4.906]
[1755980740752,9.95828129,203.94,203.89,2.62]
[1755980741058,9.95828129,203.94,203.87,4.906]
[1755980741059,9.95828129,203.94,203.91,2.62]
[1755980743357,5.05368129,203.94,203.91,2.62]
[1755980743551,9.95788129,203.96,203.92,2.62]
[1755980743954,9.95738129,203.98,203.88,5.05368129]
[1755980744157,9.95738129,203.98,203.85,24.5338]
[1755980744158,54.20256526,204.0,203.91,2.62]
[1755980744357,54.20256526,204.0,203.92,4.47151508]
[1755980744659,54.20256526,204.0,203.93,7.09151508]
[1755980744858,54.20256526,204.0,203.94,4.47151508]
[1755980745059,54.20256526,204.0,203.93,2.62]
[1755980745260,54.20256526,204.0,203.94,4.47116634]
[1755980745454,54.20256526,204.0,203.93,2.62]
[1755980745654,59.10576526,204.0,203.94,4.47116634]
[1755980745954,59.10576526,204.0,203.93,2.62]
[1755980746256,59.10576526,204.0,203.94,4.47116634]
[1755980746453,59.10576526,204.0,203.91,4.9051]
[1755980746454,59.10576526,204.0,203.95,7.09116634]
[1755980746753,59.10576526,204.0,203.95,2.62]
[1755980747058,54.05208397,204.0,203.96,4.47148582]
[1755980747253,54.05208397,204.0,203.96,2.62]
[1755980748051,54.05208397,204.0,203.97,4.47155431]
[1755980748255,54.05208397,204.0,203.96,2.62]
[1755980748457,54.05208397,204.0,203.97,4.47170481]
[1755980748658,54.05208397,204.0,203.96,2.62]
[1755980748858,54.05208397,204.0,203.93,7.5248]
[1755980749060,54.05208397,204.0,203.94,4.4718383]
[1755980749253,54.05208397,204.0,203.95,4.4718383]
[1755980749459,54.05208397,204.0,203.96,4.4718383]
[1755980749658,54.05208397,204.0,203.95,2.62]
[1755980749858,54.05208397,204.0,203.96,4.47218267]
[1755980750160,54.05208397,204.0,203.95,2.62]
[1755980750360,54.05208397,204.0,203.96,4.47262597]
[1755980750563,54.05208397,204.0,203.95,2.62]
[1755980750764,54.05208397,204.0,203.96,4.47262597]
[1755980750957,54.05208397,204.0,203.95,2.62]
[1755980751257,54.05208397,204.0,203.96,4.47262597]
[1755980751454,54.05208397,204.0,203.97,4.47262597]
[1755980751659,54.05208397,204.0,203.95,2.62]
[1755980751859,54.05208397,204.0,203.96,4.47317642]
[1755980752059,54.05208397,204.0,203.97,4.47317642]
[1755980752265,54.05208397,204.0,203.95,2.62]
[1755980752463,54.05208397,204.0,203.96,4.47384559]
[1755980752662,54.05208397,204.0,203.97,4.47384559]
[1755980752864,4.9036,203.99,203.95,2.62]
[1755980753063,4.9036,203.99,203.96,4.47384559]
[1755980753264,4.9036,203.99,203.97,4.47384559]
[1755980753465,4.9036,203.99,203.95,2.62]
[1755980753764,4.9036,203.99,203.96,4.47450096]
[1755980753969,4.9036,203.99,203.97,4.47450096]
[1755980754166,4.9036,203.99,203.95,2.62]
[1755980754366,4.9036,203.99,203.96,4.47528616]
[1755980754566,4.9036,203.99,203.97,4.47528616]
[1755980754867,4.9036,203.99,203.95,2.62]
[1755980754868,4.9039,203.97,203.92,2.62]
[1755980755166,4.9039,203.97,203.89,5.05368129]
[1755980755167,4.9039,203.97,203.93,7.09558312]
[1755980755361,4.9039,203.97,203.94,4.47558312]
[1755980755562,4.9039,203.97,203.95,4.47558312]
[1755980755870,4.9039,203.97,203.93,2.62]
[1755980756166,4.9039,203.97,203.94,7.09684631]
[1755980756366,4.9039,203.97,203.95,4.47684631]
[1755980756566,4.9039,203.97,203.94,2.62]
[1755980756767,4.9039,203.97,203.95,4.47721292]
[1755980756968,4.9039,203.97,203.94,2.62]
[1755980757164,4.9039,203.97,203.95,4.47721292]
[1755980757368,4.9039,203.97,203.94,2.62]
[1755980757563,4.9039,203.97,203.95,4.47761454]
[1755980757757,4.9039,203.97,203.94,2.62]
[1755980757968,4.9039,203.97,203.95,4.47761454]
[1755980758163,4.9039,203.97,203.94,2.62]
[1755980758468,4.9039,203.97,203.95,4.4780548]
[1755980758669,4.9039,203.97,203.94,2.62]
[1755980758859,4.9039,203.97,203.95,4.4780548]
[1755980759062,4.9039,203.97,203.94,2.62]
[1755980759362,4.9039,203.97,203.95,4.47817948]
[1755980759566,4.9039,203.97,203.94,2.62]
[1755980759768,4.9039,203.97,203.95,4.47853838]
[1755980759964,4.9039,203.97,203.94,2.62]
[1755980760159,4.9039,203.97,203.95,4.47853838]
[1755980760365,4.9039,203.97,203.94,2.62]